fUST/lending_fUST_20251007
["ID","MTS","AMOUNT","RATE_DAILY","PERIOD"]
[389757841,1759833038891,-500.0,0.000178,2]
[389757842,1759833038901,-500.0,0.000178,2]
[389757843,1759833038910,-502.87408958,0.000178,2]
[389757844,1759833038919,-500.72310717,0.000178,2]
[389757845,1759833038929,-500.0,0.000178,2]
[389757846,1759833038938,-200.32561186,0.000178,2]
[389757847,1759833038948,-500.53852983,0.000178,2]
[389757848,1759833038957,-159.63927334,0.000178,2]
[389757849,1759833038966,-500.0,0.000178,2]
[389757850,1759833038975,-500.4367729,0.000178,2]
[389757851,1759833038984,-500.0,0.000178,2]
[389757852,1759833038994,-500.86608413,0.000178,2]
[389757853,1759833039003,-342.34883664,0.000178,2]
[389757854,1759833039013,-500.0,0.000178,2]
[389757855,1759833039022,-500.0,0.000178,2]
[389757856,1759833039032,-500.0,0.000178,2]
[389757857,1759833039043,-500.0,0.000178,2]
[389757858,1759833039053,-500.0,0.000178,2]
[389757859,1759833039063,-500.0,0.000178,2]
[389757860,1759833039072,-261.39363659,0.000178,2]
[389757861,1759833039082,-500.0,0.000178,2]
[389757862,1759833039091,-4088.01979477,0.00017869,2]
[389757863,1759833039101,-1974.62878906,0.00017985,2]
[389757864,1759833039110,-4407.87433153,0.00018,2]
[389757865,1759833039119,-180.0,0.00018043,2]
[389757866,1759833039128,-500.0,0.00018052,2]
[389757867,1759833039138,-151.0,0.000181,2]
[389757868,1759833039148,-2209.9432257,0.00018181,2]
[389757869,1759833039157,-300.0,0.00018234,2]
[389757870,1759833039167,-300.0,0.00018234,2]
[389757871,1759833039177,-300.0,0.00018234,2]
[389757872,1759833039187,-300.0,0.00018234,2]
[389757873,1759833039197,-300.0,0.00018234,2]
[389757874,1759833039207,-300.0,0.00018234,2]
[389757875,1759833039216,-300.0,0.00018234,2]
[389757876,1759833039226,-300.0,0.00018234,2]
[389757877,1759833039236,-300.0,0.00018234,2]
[389757878,1759833039246,-300.0,0.00018234,2]
[389757879,1759833039256,-300.0,0.00018234,2]
[389757880,1759833039266,-300.0,0.00018234,2]
[389757881,1759833039276,-300.0,0.00018234,2]
[389757882,1759833039285,-300.0,0.00018234,2]
[389757883,1759833039295,-300.0,0.00018234,2]
[389757884,1759833039305,-600.0,0.00018234,2]
[389757885,1759833039314,-185.70136383,0.00018258,2]
[389757886,1759833039324,-151.0,0.000183,2]
[389757887,1759833039335,-500.0,0.00018326,2]
[389757888,1759833039345,-3988.04914618,0.00018334,2]
[389757889,1759833039354,-502.53494035,0.00018348,2]
[389757890,1759833039364,-417.47746486,0.00018348,2]
[389757891,1759833039374,-1000.0,0.00018348,2]
[389757892,1759833039384,-1000.0,0.00018348,2]
[389757893,1759833039394,-1000.0,0.00018348,2]
[389757894,1759833039403,-1000.0,0.00018348,2]
[389757895,1759833039413,-291.69005538,0.00018348,2]
[389757896,1759833039422,-1000.0,0.00018348,2]
[389757897,1759833039431,-205.75445469,0.00018348,2]
[389757898,1759833039441,-1000.0,0.00018348,2]
[389757899,1759833039450,-501.86315787,0.00018348,2]
[389757900,1759833039459,-1000.0,0.00018356,2]
[389757901,1759833039467,-345.0,0.00018372,2]
[389757902,1759833039477,-9299.37998117,0.00018378,2]
[389757903,1759833039486,-151.0,0.000184,2]
[389757904,1759833039495,-500.0,0.000186,2]
[389757905,1759833039504,-151.0,0.000186,2]
[389757906,1759833039513,-151.0,0.000186,2]
[389757907,1759833039524,-168.0,0.00018621,2]
[389757908,1759833039533,-1000.0,0.0001863,2]
[389757909,1759833039543,-151.0,0.000187,2]
[389757910,1759833039624,-151.0,0.000187,2]
[389757911,1759833039634,-2705.0,0.00018711,2]
[389757912,1759833039643,-345.0,0.00018743,2]
[389757913,1759833039652,-345.0,0.00018743,2]
[389757914,1759833039662,-345.0,0.00018782,2]
[389757915,1759833039676,-151.0,0.000188,2]
[389757916,1759833039685,-151.0,0.000188,2]
[389757917,1759833039694,-345.0,0.00018812,2]
[389757918,1759833039704,-195.0,0.00018843,2]
[389757919,1759833039715,-500.0,0.00018874,2]
[389757920,1759833039729,-1500.0,0.00018896,2]
[389757921,1759833039739,-1500.0,0.00018896,2]
[389757922,1759833039748,-1500.0,0.00018896,2]
[389757923,1759833039759,-500.0,0.00018896,2]
[389757924,1759833039768,-1500.0,0.00018896,2]
[389757925,1759833039776,-1500.0,0.00018896,2]
[389757926,1759833039786,-151.0,0.000189,2]
[389757927,1759833039795,-151.0,0.000189,2]
[389757928,1759833039804,-1000.0,0.00018904,2]
[389757929,1759833039814,-345.0,0.00018916,2]
[389757930,1759833039824,-168.0,0.00018919,2]
[389757931,1759833039834,-345.0,0.00018947,2]
[389757932,1759833039843,-345.0,0.00018952,2]
[389757933,1759833039852,-177.30960461,0.0001897,2]
[389757934,1759833039861,-345.0,0.0001897,2]
[389757935,1759833039870,-28719.03886596,0.0001897,2]
[389757936,1759833039879,-160.0,0.00018979,3]
[389757937,1759833039888,-279.06357233,0.00018982,2]
[389757938,1759833039897,-2705.0,0.00018984,2]
[389757939,1759833039906,-151.0,0.00019017,2]
[389757940,1759833039914,-151.35091737,0.00019017,2]
[389757942,1759833039923,-345.0,0.00019035,2]
[389757943,1759833039932,-2000.0,0.00019055,2]
[389757944,1759833039941,-32263.70364182,0.0001906,2]
[389757945,1759833039950,-7654.60951866,0.00019063,7]
[389757946,1759833039959,-151.989716,0.0001907,2]
[389757947,1759833039968,-151.0,0.0001907,2]
[389757949,1759833039977,-168.103223,0.0001907,2]
[389757951,1759833039986,-151.0,0.0001907,2]
[389757953,1759833039995,-400.986,0.0001907,2]
[389757955,1759833040004,-400.986,0.0001907,2]
[389757957,1759833040013,-400.986,0.0001907,2]
[389757959,1759833040022,-400.986,0.0001907,2]
[389757961,1759833040030,-152.12544,0.0001907,2]
[389757963,1759833040039,-151.0,0.0001907,2]
[389757965,1759833040049,-151.0,0.0001907,2]
[389757966,1759833040059,-151.0,0.0001907,2]
[389757969,1759833040068,-151.0,0.0001907,2]
[389757970,1759833040077,-154.219159,0.0001907,2]
[389757972,1759833040087,-151.821237,0.0001907,2]
[389757974,1759833040095,-151.0,0.0001907,2]
[389757976,1759833040104,-151.0,0.0001907,2]
[389757978,1759833040113,-151.0,0.0001907,2]
[389757980,1759833040122,-151.0,0.0001907,2]
[389757982,1759833040131,-151.0,0.0001907,2]
[389757984,1759833040140,-151.0,0.0001907,2]
[389757986,1759833040149,-293.939476,0.0001907,2]
[389757988,1759833040158,-151.0,0.0001907,2]
[389757990,1759833040167,-151.0,0.0001907,2]
[389757992,1759833040176,-152.159037,0.0001907,2]
[389757994,1759833040185,-151.0,0.0001907,2]
[389757996,1759833040194,-151.0,0.0001907,2]
[389757998,1759833040203,-151.0,0.0001907,2]
[389758000,1759833040212,-151.0,0.0001907,2]
[389758002,1759833040221,-240.731833,0.0001907,2]
[389758004,1759833040230,-240.731833,0.0001907,2]
[389758006,1759833040239,-240.731833,0.0001907,2]
[389758008,1759833040247,-240.731833,0.0001907,2]
[389758010,1759833040257,-240.731833,0.0001907,2]
[389758012,1759833040265,-240.731833,0.0001907,2]
[389758014,1759833040274,-240.731833,0.0001907,2]
[389758016,1759833040283,-240.731833,0.0001907,2]
[389758018,1759833040291,-151.0,0.0001907,2]
[389758020,1759833040302,-151.0,0.0001907,2]
[389758022,1759833040311,-151.0,0.0001907,2]
[389758024,1759833040320,-151.0,0.0001907,2]
[389758026,1759833040330,-151.0,0.0001907,2]
[389758028,1759833040340,-224.380727,0.0001907,2]
[389758030,1759833040349,-155.186527,0.0001907,2]
[389758032,1759833040358,-151.0,0.0001907,2]
[389758034,1759833040367,-151.0,0.0001907,2]
[389758036,1759833040376,-228.037078,0.0001907,2]
[389758038,1759833040385,-228.037078,0.0001907,2]
[389758040,1759833040393,-228.037078,0.0001907,2]
[389758042,1759833040402,-228.037078,0.0001907,2]
[389758044,1759833040411,-228.037078,0.0001907,2]
[389758046,1759833040420,-228.037078,0.0001907,2]
[389758048,1759833040429,-228.037078,0.0001907,2]
[389758050,1759833040438,-228.037078,0.0001907,2]
[389758052,1759833040446,-151.0,0.0001907,2]
[389758054,1759833040455,-151.0,0.0001907,2]
[389758056,1759833040464,-151.0,0.0001907,2]
[389758058,1759833040473,-151.0,0.0001907,2]
[389758060,1759833040482,-151.0,0.0001907,2]
[389758062,1759833040491,-154.4622178,0.0001907,2]
[389758064,1759833040500,-152.571811,0.0001907,2]
[389758066,1759833040510,-599.708878,0.0001907,2]
[389758068,1759833040519,-599.708878,0.0001907,2]
[389758070,1759833040527,-151.0,0.0001907,2]
[389758072,1759833040536,-599.708878,0.0001907,2]
[389758074,1759833040545,-599.708878,0.0001907,2]
[389758076,1759833040554,-599.708878,0.0001907,2]
[389758078,1759833040562,-599.708878,0.0001907,2]
[389758080,1759833040571,-599.708878,0.0001907,2]
[389758082,1759833040579,-599.708878,0.0001907,2]
[389758084,1759833040588,-153.134092,0.0001907,2]
[389758086,1759833040597,-6936.34172,0.0001907,2]
[389758088,1759833040606,-6936.34172,0.0001907,2]
[389758090,1759833040617,-6936.34172,0.0001907,2]
[389758092,1759833040626,-151.0,0.0001907,2]
[389758094,1759833040635,-6936.34172,0.0001907,2]
[389758096,1759833040645,-151.0,0.0001907,2]
[389758098,1759833040654,-6936.34172,0.0001907,2]
[389758100,1759833040664,-151.0,0.0001907,2]
[389758102,1759833040673,-273.831473,0.0001907,2]
[389758104,1759833040682,-6936.34172,0.0001907,2]
[389758106,1759833040691,-6936.34172,0.0001907,2]
[389758108,1759833040700,-6936.34172,0.0001907,2]
[389758110,1759833040709,-151.0,0.0001907,2]
[389758112,1759833040723,-151.0,0.0001907,2]
[389758114,1759833040732,-236.95308,0.0001907,2]
[389758116,1759833040741,-183.738867,0.0001907,2]
[389758118,1759833040749,-153.068941,0.0001907,2]
[389758120,1759833040760,-153.018632,0.0001907,2]
[389758122,1759833040769,-151.0,0.0001907,2]
[389758124,1759833040778,-151.0,0.0001907,2]
[389758126,1759833040789,-151.0,0.0001907,2]
[389758128,1759833040799,-152.298219,0.0001907,2]
[389758130,1759833040808,-151.0,0.0001907,2]
[389758132,1759833040817,-151.0,0.0001907,2]
[389758134,1759833040826,-160.481312,0.0001907,2]
[389758136,1759833040835,-151.0,0.0001907,2]
[389758138,1759833040844,-151.0,0.0001907,2]
[389758140,1759833040853,-151.0,0.0001907,2]
[389758142,1759833040862,-151.0,0.0001907,2]
[389758144,1759833040871,-151.0,0.0001907,2]
[389758146,1759833040881,-151.0,0.0001907,2]
[389758148,1759833040889,-151.0,0.0001907,2]
[389758150,1759833040898,-151.0,0.0001907,2]
[389758152,1759833040908,-151.0,0.0001907,2]
[389758154,1759833040916,-151.0,0.0001907,2]
[389758156,1759833040926,-151.0,0.0001907,2]
[389758158,1759833040935,-1918.853781,0.0001907,2]
[389758160,1759833040944,-151.0,0.0001907,2]
[389758162,1759833040953,-1918.853781,0.0001907,2]
[389758164,1759833040961,-151.0,0.0001907,2]
[389758166,1759833040970,-1918.853781,0.0001907,2]
[389758168,1759833040980,-1918.853781,0.0001907,2]
[389758170,1759833040989,-1918.853781,0.0001907,2]
[389758172,1759833040999,-1918.853781,0.0001907,2]
[389758174,1759833041008,-1918.853781,0.0001907,2]
[389758176,1759833041017,-1918.853781,0.0001907,2]
[389758177,1759833041026,-151.0,0.0001907,2]
[389758178,1759833041035,-151.0,0.0001907,2]
[389758179,1759833041044,-240.0,0.0001907,2]
[389758180,1759833041053,-240.0,0.0001907,2]
[389758181,1759833041062,-240.0,0.0001907,2]
[389758182,1759833041071,-240.0,0.0001907,2]
[389758183,1759833041081,-240.0,0.0001907,2]
[389758184,1759833041090,-240.0,0.0001907,2]
[389758185,1759833041099,-151.0,0.0001907,2]
[389758186,1759833041109,-240.0,0.0001907,2]
[389758187,1759833041117,-151.0,0.0001907,2]
[389758188,1759833041126,-240.0,0.0001907,2]
[389758190,1759833041135,-153.112927,0.0001907,2]
[389758192,1759833041144,-151.0,0.0001907,2]
[389758194,1759833041154,-151.0,0.0001907,2]
[389758196,1759833041164,-151.0,0.0001907,2]
[389758198,1759833041173,-151.0,0.0001907,2]
[389758200,1759833041183,-151.0,0.0001907,2]
[389758201,1759833041192,-151.0,0.0001907,2]
[389758202,1759833041202,-151.0,0.0001907,2]
[389758203,1759833041211,-298.433677,0.0001907,2]
[389758204,1759833041221,-1001734.50833289,0.0001907,2]
[389758205,1759833041231,-38371.74716314,0.0001907,2]
[389758206,1759833041245,-455.70417096,0.0001907,2]
[389758207,1759833041262,-8248.85304119,0.0001907,2]
[389758208,1759833041637,-2599.9999,0.0001907,2]
[389758209,1759833041649,-24939.84701501,0.0001907,2]
[389758210,1759833041660,-782.91203602,0.0001907,2]
[389758211,1759833041670,-7923.45082075,0.0001907,2]
[389758234,1759833043286,-342.18194845,0.0001907,2]
[389758241,1759833043345,-23.79667552,0.0001907,2]
[389758246,1759833043384,-16499.49210936,0.0001907,2]
[389758248,1759833043395,-801.94659396,0.0001907,2]
[389758414,1759833046490,-12431.0161898,0.0001907,2]
[389758416,1759833196885,78127.0,0.0003059,60]
[389758417,1759833231087,500.0,0.0003059,60]
[389758418,1759833231306,500.0,0.0003059,60]
[389758419,1759833231548,507.15075902,0.0003059,60]
[389758420,1759833233189,702.93,0.0003059,60]
[389758421,1759833233265,702.93,0.0003059,60]
[389758422,1759833233566,702.93,0.0003059,60]
[389758423,1759833233830,702.93,0.0003059,60]
[389758424,1759833234027,500.0,0.0003059,60]
[389758425,1759833234088,702.93,0.0003059,60]
[389758426,1759833234276,500.0,0.0003059,60]
[389758427,1759833234308,500.0,0.0003059,60]
[389758428,1759833234349,702.93,0.0003059,60]
[389758429,1759833234524,361.69054756,0.0003059,60]
[389758430,1759833234554,500.0,0.0003059,60]
[389758431,1759833234615,702.93,0.0003059,60]
[389758432,1759833234776,500.0,0.0003059,60]
[389758433,1759833234868,702.93,0.0003059,60]
[389758434,1759833235134,702.93,0.0003059,60]
[389758435,1759833235222,500.0,0.0003059,60]
[389758436,1759833235378,702.93,0.0003059,60]
[389758437,1759833235446,500.0,0.0003059,60]
[389758438,1759833235480,606.8,0.0003059,60]
[389758439,1759833235508,630.0,0.0003059,60]
[389758440,1759833235627,702.93,0.0003059,60]
[389758441,1759833235686,500.0,0.0003059,60]
[389758442,1759833235714,606.8,0.0003059,60]
[389758443,1759833235744,500.0,0.0003059,60]
[389758444,1759833235783,630.0,0.0003059,60]
[389758445,1759833235869,702.93,0.0003059,60]
[389758446,1759833235913,500.0,0.0003059,60]
[389758447,1759833235941,606.8,0.0003059,60]
[389758448,1759833235983,500.0,0.0003059,60]
[389758449,1759833236019,630.0,0.0003059,60]
[389758450,1759833236140,702.93,0.0003059,60]
[389758451,1759833236170,500.0,0.0003059,60]
[389758452,1759833236199,606.8,0.0003059,60]
[389758453,1759833236229,500.0,0.0003059,60]
[389758454,1759833236272,630.0,0.0003059,60]
[389758455,1759833236373,702.93,0.0003059,60]
[389758456,1759833236402,500.0,0.0003059,60]
[389758457,1759833236431,606.8,0.0003059,60]
[389758458,1759833236477,500.0,0.0003059,60]
[389758459,1759833236520,630.0,0.0003059,60]
[389758460,1759833236761,702.93,0.0003059,60]
[389758461,1759833236795,500.0,0.0003059,60]
[389758462,1759833236826,606.8,0.0003059,60]
[389758463,1759833236870,500.0,0.0003059,60]
[389758464,1759833236899,630.0,0.0003059,60]
[389758465,1759833236936,702.93,0.0003059,60]
[389758466,1759833236965,500.0,0.0003059,60]
[389758467,1759833236995,606.8,0.0003059,60]
[389758468,1759833237148,561.91,0.0003059,60]
[389758469,1759833237177,500.0,0.0003059,60]
[389758470,1759833237206,630.0,0.0003059,60]
[389758471,1759833237235,500.0,0.0003059,60]
[389758472,1759833237265,702.93,0.0003059,60]
[389758473,1759833237380,500.0,0.0003059,60]
[389758474,1759833237649,606.8,0.0003059,60]
[389758475,1759833237695,630.0,0.0003059,60]
[389758476,1759833237724,561.91,0.0003059,60]
[389758477,1759833237752,500.0,0.0003059,60]
[389758478,1759833237784,500.0,0.0003059,60]
[389758479,1759833237813,606.8,0.0003059,60]
[389758480,1759833237878,702.93,0.0003059,60]
[389758481,1759833237956,500.0,0.0003059,60]
[389758482,1759833237996,561.91,0.0003059,60]
[389758483,1759833238024,630.0,0.0003059,60]
[389758484,1759833238052,500.0,0.0003059,60]
[389758485,1759833238081,500.0,0.0003059,60]
[389758486,1759833238110,606.8,0.0003059,60]
[389758487,1759833238137,500.0,0.0003059,60]
[389758488,1759833238168,500.0,0.0003059,60]
[389758489,1759833238196,500.0,0.0003059,60]
[389758490,1759833238225,561.91,0.0003059,60]
[389758491,1759833238255,630.0,0.0003059,60]
[389758492,1759833238285,500.0,0.0003059,60]
[389758493,1759833238313,500.0,0.0003059,60]
[389758494,1759833238341,702.93,0.0003059,60]
[389758495,1759833238369,500.0,0.0003059,60]
[389758496,1759833238397,606.8,0.0003059,60]
[389758497,1759833238425,500.0,0.0003059,60]
[389758498,1759833238454,740.62,0.0003059,60]
[389758499,1759833238483,500.0,0.0003059,60]
[389758500,1759833238512,500.0,0.0003059,60]
[389758501,1759833238540,630.0,0.0003059,60]
[389758502,1759833238568,561.91,0.0003059,60]
[389758503,1759833238597,500.0,0.0003059,60]
[389758504,1759833238631,500.0,0.0003059,60]
[389758505,1759833238661,500.0,0.0003059,60]
[389758506,1759833238691,702.93,0.0003059,60]
[389758507,1759833238734,606.8,0.0003059,60]
[389758508,1759833238765,500.0,0.0003059,60]
[389758509,1759833238790,740.62,0.0003059,60]
[389758510,1759833238819,500.0,0.0003059,60]
[389758511,1759833238847,500.0,0.0003059,60]
[389758512,1759833238869,561.91,0.0003059,60]
[389758513,1759833238894,500.0,0.0003059,60]
[389758514,1759833238923,630.0,0.0003059,60]
[389758515,1759833238963,702.93,0.0003059,60]
[389758516,1759833238991,500.0,0.0003059,60]
[389758517,1759833239020,606.8,0.0003059,60]
[389758518,1759833239048,500.0,0.0003059,60]
[389758519,1759833239080,740.62,0.0003059,60]
[389758520,1759833239108,500.0,0.0003059,60]
[389758521,1759833239135,500.0,0.0003059,60]
[389758522,1759833239163,561.91,0.0003059,60]
[389758523,1759833239190,500.0,0.0003059,60]
[389758524,1759833239218,630.0,0.0003059,60]
[389758525,1759833239259,500.0,0.0003059,60]
[389758526,1759833239288,702.93,0.0003059,60]
[389758527,1759833239317,500.0,0.0003059,60]
[389758528,1759833239346,606.8,0.0003059,60]
[389758529,1759833239374,390.53824991,0.0003059,60]
[389758530,1759833239401,500.0,0.0003059,60]
[389758531,1759833239430,740.62,0.0003059,60]
[389758532,1759833239457,500.0,0.0003059,60]
[389758533,1759833239484,561.91,0.0003059,60]
[389758534,1759833239511,500.0,0.0003059,60]
[389758535,1759833239539,630.0,0.0003059,60]
[389758536,1759833239568,702.93,0.0003059,60]
[389758537,1759833239608,606.8,0.0003059,60]
[389758538,1759833239636,500.0,0.0003059,60]
[389758539,1759833239662,500.0,0.0003059,60]
[389758540,1759833239690,500.0,0.0003059,60]
[389758541,1759833239717,561.91,0.0003059,60]
[389758542,1759833239746,500.0,0.0003059,60]
[389758543,1759833239779,500.0,0.0003059,60]
[389758544,1759833239807,630.0,0.0003059,60]
[389758545,1759833239838,740.62,0.0003059,60]
[389758546,1759833239879,606.8,0.0003059,60]
[389758547,1759833239907,703.08286331,0.0003059,60]
[389758548,1759833239934,500.0,0.0003059,60]
[389758549,1759833239961,500.0,0.0003059,60]
[389758550,1759833239990,500.0,0.0003059,60]
[389758551,1759833240019,561.91,0.0003059,60]
[389758552,1759833240048,500.0,0.0003059,60]
[389758553,1759833240261,740.62,0.0003059,60]
[389758554,1759833240304,500.0,0.0003059,60]
[389758555,1759833240336,630.0,0.0003059,60]
[389758556,1759833240366,606.8,0.0003059,60]
[389758557,1759833240394,500.0,0.0003059,60]
[389758558,1759833240424,500.0,0.0003059,60]
[389758559,1759833240452,500.0,0.0003059,60]
[389758560,1759833240480,561.91,0.0003059,60]
[389758561,1759833240523,740.62,0.0003059,60]
[389758562,1759833240551,500.0,0.0003059,60]
[389758563,1759833240583,500.0,0.0003059,60]
[389758564,1759833240613,606.8,0.0003059,60]
[389758565,1759833240643,630.0,0.0003059,60]
[389758566,1759833240673,500.0,0.0003059,60]
[389758567,1759833240701,500.0,0.0003059,60]
[389758568,1759833240731,370.91799699,0.0003059,60]
[389758569,1759833240761,561.91,0.0003059,60]
[389758570,1759833240792,500.0,0.0003059,60]
[389758571,1759833240836,606.8,0.0003059,60]
[389758572,1759833240868,740.62,0.0003059,60]
[389758573,1759833240896,500.0,0.0003059,60]
[389758574,1759833240927,630.0,0.0003059,60]
[389758575,1759833240956,500.0,0.0003059,60]
[389758576,1759833240985,500.0,0.0003059,60]
[389758577,1759833241014,561.91,0.0003059,60]
[389758578,1759833241043,606.8,0.0003059,60]
[389758579,1759833241070,500.0,0.0003059,60]
[389758580,1759833241100,500.0,0.0003059,60]
[389758581,1759833241129,630.0,0.0003059,60]
[389758582,1759833241170,342.2839912,0.0003059,60]
[389758583,1759833241201,500.0,0.0003059,60]
[389758584,1759833241230,606.8,0.0003059,60]
[389758585,1759833241259,500.0,0.0003059,60]
[389758586,1759833241288,740.62,0.0003059,60]
[389758587,1759833241317,500.0,0.0003059,60]
[389758588,1759833241348,630.0,0.0003059,60]
[389758589,1759833241389,500.0,0.0003059,60]
[389758590,1759833241417,606.8,0.0003059,60]
[389758591,1759833241446,500.0,0.0003059,60]
[389758592,1759833241474,740.62,0.0003059,60]
[389758593,1759833241502,500.0,0.0003059,60]
[389758594,1759833241530,630.0,0.0003059,60]
[389758595,1759833241570,500.0,0.0003059,60]
[389758596,1759833241598,606.8,0.0003059,60]
[389758597,1759833241625,500.0,0.0003059,60]
[389758598,1759833241653,740.62,0.0003059,60]
[389758599,1759833241684,500.0,0.0003059,60]
[389758600,1759833241712,80.36146718,0.0003059,60]
[389758602,1759833422702,151.0,0.00028767,120]
[389758603,1759833448359,1162.0,0.0002876,120]
[389758604,1759833454328,151.0,0.00028767,120]
[389758605,1759833479769,177.15,0.00015774,3]
[389758606,1759833480059,177.15,0.00015774,3]
[389758607,1759833480342,177.13,0.00015774,3]
[389758612,1759833856508,709.502767,0.00013699,2]
[389758613,1759834196756,4147.0,0.00028767,120]
[389758629,1759834232458,-470.21261488,0.00016309,2]
[389758630,1759834232470,-908.21597432,0.00016309,2]
[389758631,1759834232480,-470.8201296,0.00016396,2]
[389758632,1759834232490,-529.83615145,0.00016578,2]
[389758633,1759834232512,-974.58944555,0.00016578,2]
[389758634,1759834232521,-710.4050005,0.00016581,2]
[389758635,1759834232531,-359.570285,0.00016654,2]
[389758636,1759834232540,-1046.2912557,0.0001667,2]
[389758637,1759834232550,-666.0,0.00016682,2]
[389758638,1759834232559,-165.0,0.00017379,2]
[389758639,1759834232570,-248.00649952,0.00017446,2]
[389758640,1759834232579,-159.17259762,0.00017475,2]
[389758641,1759834232589,-300.0,0.00017554,2]
[389758642,1759834232598,-190.0,0.00017554,2]
[389758643,1759834232608,-300.0,0.00017554,2]
[389758644,1759834232617,-300.0,0.00017554,2]
[389758645,1759834232627,-300.0,0.00017554,2]
[389758646,1759834232637,-1200.0,0.00017554,2]
[389758647,1759834232647,-342.15396998,0.00017555,2]
[389758648,1759834232656,-1368.61587993,0.00017555,2]
[389758649,1759834232665,-3079.38572985,0.00017555,2]
[389758650,1759834232675,-5468.98905622,0.00017555,2]
[389758651,1759834232937,-413.64923303,0.00017572,2]
[389758652,1759834232947,-413.649233,0.00017573,2]
[389758653,1759834232956,-413.649233,0.00017575,2]
[389758654,1759834232966,-50000.0,0.00017575,2]
[389758655,1759834232975,-1200.0,0.00017575,2]
[389758656,1759834232985,-413.649233,0.00017576,2]
[389758657,1759834232995,-7185.72485502,0.00017577,2]
[389758658,1759834233005,-413.649233,0.00017577,2]
[389758659,1759834233014,-742.44,0.00017667,3]
[389758660,1759834233023,-371.22,0.00017667,3]
[389758661,1759834233032,-185.61,0.00017667,3]
[389758662,1759834233042,-556.87,0.00017667,3]
[389758663,1759834233051,-500.0,0.00017672,2]
[389758664,1759834233061,-500.0,0.00017672,2]
[389758665,1759834233071,-500.0,0.00017672,2]
[389758666,1759834233080,-500.0,0.00017672,2]
[389758667,1759834233091,-500.0,0.00017672,2]
[389758668,1759834233103,-500.0,0.00017672,2]
[389758669,1759834233113,-557.73253853,0.00017672,2]
[389758670,1759834233122,-500.0,0.00017672,2]
[389758671,1759834233133,-500.0,0.00017672,2]
[389758672,1759834233143,-500.0,0.00017672,2]
[389758673,1759834233152,-500.0,0.00017672,2]
[389758674,1759834233161,-500.0,0.00017672,2]
[389758675,1759834233172,-500.0,0.00017672,2]
[389758676,1759834233182,-500.0,0.00017672,2]
[389758677,1759834233191,-500.0,0.00017672,2]
[389758678,1759834233200,-500.0,0.00017672,2]
[389758679,1759834233210,-500.0,0.00017672,2]
[389758680,1759834233219,-627.82914056,0.00017672,2]